fUSD/lending_fUSD_20260224
["ID","MTS","AMOUNT","RATE_DAILY","PERIOD"]
[406533862,1771921056044,-500.0,0.000108,2]
[406533863,1771921056073,-500.0,0.000108,2]
[406533864,1771921056100,-500.0,0.000108,2]
[406533865,1771921056128,-500.0,0.000108,2]
[406533866,1771921056155,-500.0,0.000108,2]
[406533867,1771921056183,-500.0,0.000108,2]
[406533868,1771921056211,-500.0,0.000108,2]
[406533869,1771921056239,-500.0,0.000108,2]
[406533870,1771921081465,300.0,0.00010799,2]
[406533871,1771921082393,150.0,0.00010799,2]
[406533872,1771921140733,-500.0,0.000108,2]
[406533873,1771921140757,-500.0,0.000108,2]
[406533874,1771921140782,-500.0,0.000108,2]
[406533875,1771921140806,-500.0,0.000108,2]
[406533876,1771921140832,-500.0,0.000108,2]
[406533877,1771921140856,-500.0,0.000108,2]
[406533878,1771921140880,-500.0,0.000108,2]
[406533879,1771921140906,-500.0,0.000108,2]
[406533880,1771921140930,-500.0,0.000108,2]
[406533881,1771921140954,-500.0,0.000108,2]
[406533882,1771921140979,-500.0,0.000108,2]
[406533883,1771921141003,-500.0,0.000108,2]
[406533884,1771921141027,-961.04385964,0.000108,2]
[406533885,1771921141050,-500.0,0.000108,2]
[406533886,1771921141074,-500.0,0.000108,2]
[406533887,1771921141097,-500.0,0.000108,2]
[406533888,1771921141120,-500.0,0.000108,2]
[406533889,1771921141145,-500.0,0.000108,2]
[406533890,1771921141168,-500.0,0.000108,2]
[406533891,1771921141192,-500.0,0.000108,2]
[406533892,1771921141216,-500.0,0.000108,2]
[406533893,1771921141240,-500.0,0.000108,2]
[406533894,1771921141263,-500.0,0.000108,2]
[406533895,1771921141287,-500.0,0.000108,2]
[406533896,1771921141312,-500.0,0.000108,2]
[406533897,1771921141338,-500.0,0.000108,2]
[406533898,1771921141362,-500.0,0.000108,2]
[406533899,1771921141387,-500.0,0.000108,2]
[406533900,1771921141412,-500.0,0.000108,2]
[406533901,1771921141437,-500.0,0.000108,2]
[406533902,1771921141462,-176.24816484,0.00010809,2]
[406533903,1771921141490,-5799.45555926,0.00010809,2]
[406533904,1771921141514,-221.46243306,0.00010809,2]
[406533905,1771921141538,-881.52657892,0.00010902,2]
[406533906,1771921141565,-75260.26340428,0.00010909,2]
[406533907,1771921141607,300.0,0.00010799,2]
[406533912,1771921292694,180.485,0.00010691,2]
[406533913,1771921292807,1933.864,0.00010691,2]
[406533914,1771921342324,-291.5,0.000108,2]
[406533915,1771921342355,-238.0,0.000108,2]
[406533917,1771921491382,4352.77,0.00010371,2]
[406533918,1771921492588,175.99,8.296e-05,2]
[406533924,1771921552836,4412.25,9.95e-05,2]
[406533925,1771921552860,10000.01,9.95e-05,2]
[406533926,1771921552883,10000.01,9.95e-05,2]
[406533927,1771921552906,10000.01,9.95e-05,2]
[406533928,1771921552929,10000.01,9.95e-05,2]
[406533929,1771921552952,3709.19090898,9.95e-05,2]
[406533931,1771921629256,217.17,0.0001029,2]
[406533932,1771921638943,220.248153,0.00010411,2]
[406533936,1771921652324,249.68490021,0.00010708,2]
[406533946,1771921671056,521.35947784,0.00010708,2]
[406533947,1771921688008,494.63228229,0.00010708,2]
[406533948,1771921702510,3995.71,0.00010303,2]
[406533949,1771921708452,1967.31764889,0.0001,2]
[406533955,1771921718682,3020.99059098,0.0001,2]
[406533956,1771921718708,10000.01,0.0001,2]
[406533957,1771921718736,9853.58271663,0.0001,2]
[406533959,1771921726026,538.82,0.00010303,2]
[406533960,1771921750537,6375.13100949,0.00010708,2]
[406533961,1771921782646,230.59895307,0.00010708,2]
[406533962,1771921791745,500.0,0.00010191,2]
[406533963,1771921801298,1197.48125148,0.00010708,2]
[406533964,1771921804625,150.0,0.00010807,14]
[406533965,1771921807280,1157.97878596,7.157e-05,2]
[406533966,1771921807305,1196.82121404,7.157e-05,2]
[406533967,1771921807470,2354.8,7.319e-05,2]
[406533968,1771921807695,2354.8,7.48e-05,2]
[406533969,1771921807901,2354.8,7.642e-05,2]
[406533970,1771921808104,1738.78878596,7.803e-05,2]
[406533971,1771921808128,616.01121404,7.803e-05,2]
[406533972,1771921808297,2354.8,7.965e-05,2]
[406533973,1771921808510,2354.8,8.126e-05,2]
[406533974,1771921808716,2354.8,8.288e-05,2]
[406533975,1771921808909,2319.59878596,8.449e-05,2]
[406533976,1771921808933,35.20121404,8.449e-05,2]
[406533977,1771921809118,2354.8,8.61e-05,2]
[406533978,1771921809331,2354.8,8.772e-05,2]
[406533979,1771921809528,2354.8,8.933e-05,2]
[406533980,1771921809754,2354.8,9.095e-05,2]
[406533981,1771921809920,545.60878596,9.256e-05,2]
[406533982,1771921809944,1809.19121404,9.256e-05,2]
[406533983,1771921810105,2354.8,9.418e-05,2]
[406533984,1771921810304,2354.8,9.579e-05,2]
[406533985,1771921810490,2354.8,9.741e-05,2]
[406533986,1771921810688,1126.41878596,9.902e-05,2]
[406533987,1771921810715,1228.38121404,9.902e-05,2]
[406533997,1771921831408,-1627.7916923,0.00010064,2]
[406533998,1771921831420,-727.0083077,0.00010064,2]
[406533999,1771921831430,-2354.8,0.00010225,2]
[406534000,1771921831439,-329.75485486,0.00010709,2]
[406534001,1771921831448,-353.07922563,0.00010798,2]
[406534002,1771921831458,-300.0,0.00010806,2]
[406534003,1771921831467,-586.30131681,0.00010806,2]
[406534004,1771921831479,-613.69868319,0.00010806,2]
[406534005,1771921831488,-150.0,0.00010806,2]
[406534006,1771921831497,-238.0,0.00010806,2]
[406534007,1771921831507,-250.0,0.00010806,2]
[406534008,1771921831516,-500.0,0.00010807,2]
[406534009,1771921831526,-150.0,0.00010807,2]
[406534010,1771921831535,-1000.0,0.00010807,2]
[406534011,1771921831544,-160.71751513,0.00010807,2]
[406534012,1771921831554,-350.89662815,0.00010807,2]
[406534013,1771921831563,-251.90366821,0.00010807,2]
[406534014,1771921831575,-248.09633179,0.00010807,2]
[406534015,1771921831584,-307.49783968,0.00010807,2]
[406534016,1771921831596,-192.50216032,0.00010807,2]
[406534018,1771921831605,-345.47029234,0.00010807,2]
[406534019,1771921831617,-298.87940816,0.00010807,2]
[406534020,1771921831626,-166.72118877,0.00010807,2]
[406534021,1771921831636,-500.0,0.00010807,2]
[406534022,1771921831645,-165.56897386,0.00010807,2]
[406534023,1771921831655,-68.83042921,0.00010807,2]
[406534026,1771921831667,-431.16957079,0.00010807,2]
[406534027,1771921831676,-155.77042921,0.00010807,2]
[406534028,1771921831687,-344.22957079,0.00010807,2]
[406534029,1771921831697,-155.77042921,0.00010807,2]
[406534030,1771921831708,-344.22957079,0.00010807,2]
[406534031,1771921831718,-500.0,0.00010807,2]
[406534032,1771921831727,-500.0,0.00010807,2]
[406534033,1771921831737,-500.0,0.00010807,2]
[406534034,1771921831747,-500.0,0.00010807,2]
[406534035,1771921831756,-500.0,0.00010807,2]
[406534036,1771921831765,-500.0,0.00010807,2]
[406534037,1771921831774,-500.0,0.00010807,2]
[406534038,1771921831783,-500.0,0.00010807,2]
[406534039,1771921831792,-500.0,0.00010807,2]
[406534040,1771921831801,-165.49659089,0.00010807,2]
[406534041,1771921831812,-334.50340911,0.00010807,2]
[406534042,1771921831826,-500.0,0.00010807,2]
[406534043,1771921831835,-500.0,0.00010807,2]
[406534044,1771921831844,-500.0,0.00010807,2]
[406534045,1771921831853,-500.0,0.00010807,2]
[406534046,1771921831863,-500.0,0.00010807,2]
[406534047,1771921831873,-500.0,0.00010807,2]
[406534048,1771921831883,-500.0,0.00010807,2]
[406534049,1771921831892,-500.0,0.00010807,2]
[406534050,1771921831904,-500.0,0.00010807,2]
[406534051,1771921831913,-620.47198293,0.00010807,2]
[406534052,1771921831923,-500.0,0.00010807,2]
[406534053,1771921831932,-500.0,0.00010807,2]
[406534054,1771921831941,-500.0,0.00010807,2]
[406534055,1771921831952,-500.0,0.00010807,2]
[406534056,1771921831962,-500.0,0.00010807,2]
[406534057,1771921831971,-500.0,0.00010807,2]
[406534058,1771921831980,-500.0,0.00010807,2]
[406534059,1771921831989,-500.0,0.00010807,2]
[406534060,1771921831998,-500.0,0.00010807,2]
[406534061,1771921832008,-500.0,0.00010807,2]
[406534062,1771921832017,-500.0,0.00010807,2]
[406534063,1771921832026,-500.0,0.00010807,2]
[406534064,1771921832035,-500.0,0.00010807,2]
[406534065,1771921832044,-500.0,0.00010807,2]
[406534066,1771921832054,-449.99999999,0.00010807,2]
[406534067,1771921832063,-500.0,0.00010807,2]
[406534068,1771921832073,-500.0,0.00010807,2]
[406534069,1771921832082,-500.0,0.00010807,2]
[406534070,1771921832091,-500.0,0.00010807,2]
[406534071,1771921832101,-500.0,0.00010807,2]
[406534072,1771921832110,-500.0,0.00010807,2]
[406534073,1771921832119,-600.83573189,0.00010807,2]
[406534074,1771921832129,-500.0,0.00010807,2]
[406534075,1771921832139,-600.83573189,0.00010807,2]
[406534076,1771921832150,-500.0,0.00010807,2]
[406534077,1771921832159,-600.83573189,0.00010807,2]
[406534078,1771921832168,-500.0,0.00010807,2]
[406534079,1771921832178,-600.83573189,0.00010807,2]
[406534080,1771921832188,-600.83573189,0.00010807,2]
[406534081,1771921832197,-500.0,0.00010807,2]
[406534082,1771921832207,-500.0,0.00010807,2]
[406534083,1771921832216,-600.83573189,0.00010807,2]
[406534084,1771921832226,-426119.34713677,0.00010808,2]
[406534085,1771921832238,-61500.79139902,0.00010808,2]
[406534086,1771921832249,-1146.43337587,0.00010808,2]
[406534090,1771921837635,-570.86844876,0.00010808,2]
[406534091,1771921837660,-956.1785563,0.00010808,2]
[406534092,1771921838039,-77408.899055,0.00010808,2]
[406534093,1771921838051,-6543.9,0.00010808,2]
[406534094,1771921839616,-316.66,0.00010808,2]
[406534099,1771921839651,-5523.86793438,0.00010808,2]
[406534101,1771921839664,-789.47421459,0.00010808,2]
[406534104,1771921839675,-442.2986497,0.00010808,2]
[406534116,1771921839938,-2918681.28122961,0.00010808,2]
[406534117,1771921839947,-10000.0,0.00010809,2]
[406534118,1771921839956,-2500.0,0.00010809,2]
[406534119,1771921839965,-250.0,0.00010818,2]
[406534120,1771921839974,-1028.4476754,0.00010859,2]
[406534121,1771921839983,-199.26988236,0.00010859,2]
[406534122,1771921839992,-538.82,0.00010876,2]
[406534123,1771921840001,-3138.35673853,0.000109,2]
[406534124,1771921840010,-151.0,0.00010902,2]
[406534125,1771921840019,-151.0,0.00010902,2]
[406534126,1771921840028,-151.0,0.00010902,2]
[406534127,1771921840037,-151.0,0.00010902,2]
[406534128,1771921840046,-151.0,0.00010902,2]
[406534129,1771921840054,-151.0,0.00010902,2]
[406534130,1771921840063,-151.0,0.00010902,2]
[406534131,1771921840072,-151.0,0.00010902,2]
[406534132,1771921840081,-151.0,0.00010902,2]
[406534133,1771921840091,-151.0,0.00010902,2]
[406534134,1771921840100,-151.0,0.00010902,2]
[406534135,1771921840109,-151.0,0.00010902,2]
[406534136,1771921840119,-151.0,0.00010902,2]
[406534137,1771921840128,-500.0,0.00010902,2]
[406534138,1771921840137,-151.0,0.00010902,2]
[406534139,1771921840146,-151.0,0.00010902,2]
[406534140,1771921840156,-500.0,0.00010902,2]
[406534141,1771921840165,-182.13295725,0.00010902,2]
[406534142,1771921840175,-151.0,0.00010902,2]
[406534143,1771921840184,-500.0,0.00010902,2]
[406534144,1771921840193,-151.0,0.00010902,2]
[406534145,1771921840202,-500.0,0.00010902,2]
[406534146,1771921840211,-151.0,0.00010902,2]
[406534147,1771921840220,-500.0,0.00010902,2]
[406534148,1771921840229,-151.0,0.00010902,2]
[406534149,1771921840237,-500.0,0.00010902,2]
[406534150,1771921840247,-151.0,0.00010902,2]
[406534151,1771921840256,-500.0,0.00010902,2]
[406534152,1771921840265,-151.0,0.00010902,2]
[406534153,1771921840274,-500.0,0.00010902,2]
[406534154,1771921840283,-151.0,0.00010902,2]
[406534155,1771921840293,-500.0,0.00010902,2]
[406534156,1771921840304,-151.0,0.00010902,2]
[406534157,1771921840312,-500.0,0.00010902,2]
[406534158,1771921840321,-151.0,0.00010902,2]
[406534159,1771921840330,-500.0,0.00010902,2]
[406534160,1771921840339,-200.0,0.00010902,2]
[406534161,1771921840348,-1001.79575194,0.00010908,2]
[406534162,1771921840357,-1000.0,0.00010908,2]
[406534163,1771921840365,-1530.06,0.00010908,2]
[406534164,1771921840375,-1205.9102,0.00010909,2]
[406534165,1771921840383,-353.07922563,0.00010949,2]
[406534166,1771921840392,-166.66,0.00010959,2]
[406534167,1771921840402,-1543.16,0.00010959,2]
[406534168,1771921840411,-9999.99,0.00010959,2]
[406534169,1771921840420,-1539.3,0.00010959,2]
[406534170,1771921840429,-5919.05,0.00010959,2]
[406534171,1771921840438,-150.99,0.00010959,2]
[406534172,1771921840447,-29145.35,0.00010959,2]
[406534173,1771921840456,-9999.99,0.00010959,2]
[406534174,1771921840465,-299.99,0.00010959,2]
[406534175,1771921840474,-150.99,0.00010959,2]
[406534176,1771921840483,-232107.77,0.00010959,2]
[406534177,1771921840491,-9999.99,0.00010959,2]
[406534178,1771921840501,-311.71,0.00010959,2]
[406534179,1771921840510,-999.99,0.00010959,2]
[406534180,1771921840519,-1474.34,0.00010959,2]
[406534181,1771921840528,-2986.76,0.00010959,2]
[406534182,1771921840537,-349.89,0.00010959,2]
[406534183,1771921840546,-9999.99,0.00010959,2]
[406534184,1771921840555,-7141.19,0.00010959,2]
[406534185,1771921840564,-14047.33,0.00010959,2]
[406534186,1771921840573,-9999.99,0.00010959,2]
[406534187,1771921840583,-3571.95,0.00010959,2]
[406534188,1771921840592,-3709.03,0.00010959,2]
[406534189,1771921840601,-499.99,0.00010959,2]
[406534190,1771921840610,-16914.87,0.00010959,2]
[406534191,1771921840619,-1852.42,0.0001102,2]
[406534192,1771921840628,-558.46,0.00011042,2]
[406534193,1771921840638,-1000.0,0.00011078,2]
[406534194,1771921840647,-500.0,0.00011081,2]
[406534195,1771921840657,-23821.35910027,0.00011099,2]
[406534196,1771921840666,-166.66,0.00011106,2]
[406534197,1771921840675,-1530.06,0.00011182,2]
[406534198,1771921840684,-5417.1116582,0.00011199,2]
[406534199,1771921840693,-376.0,0.00011237,2]
[406534200,1771921840702,-462.0,0.00011237,2]
[406534201,1771921840712,-166.66,0.00011253,2]
[406534202,1771921840721,-188.0,0.0001126,2]
[406534203,1771921840730,-500.0,0.00011355,2]
[406534204,1771921840739,-387.0,0.00011369,2]
[406534205,1771921840748,-220.59120938,0.00011369,2]
[406534206,1771921840757,-166.66,0.000114,2]
[406534207,1771921840766,-538.82,0.00011448,2]
[406534208,1771921840775,-200.0,0.0001145,2]
[406534209,1771921840784,-1530.06,0.00011456,2]
[406534210,1771921840793,-166.66,0.00011547,2]
[406534211,1771921840802,-500.0,0.00011629,2]
[406534212,1771921840811,-23821.35910021,0.00011641,2]
[406534213,1771921840820,-200.0,0.0001165,2]
[406534214,1771921840830,-166.66,0.00011694,2]
[406534215,1771921840840,-1530.06,0.0001173,2]
[406534216,1771921840849,-3138.35673853,0.00011735,2]
[406534217,1771921840858,-255.0,0.00011843,2]
[406534218,1771921840867,-420.0,0.00011877,2]
[406534219,1771921840877,-194.14128301,0.00011885,2]
[406534220,1771921840886,-300.0,0.00011885,2]
[406534221,1771921840895,-250.0,0.00011885,2]
[406534222,1771921840905,-5000.0,0.00011887,2]
[406534223,1771921840914,-2591.16709504,0.00011887,2]
[406534224,1771921840923,-1680.0,0.00011887,2]
[406534225,1771921840933,-500.0,0.00011903,2]
[406534226,1771921840941,-202.29696668,0.00011998,2]
[406534227,1771921840950,-1530.06,0.00012004,2]
[406534228,1771921840960,-538.82,0.00012021,2]
[406534229,1771921840969,-199.26988234,0.00012033,2]
[406534230,1771921840978,-150.0,0.0001208,2]
[406534231,1771921840987,-150.0,0.00012081,2]
[406534232,1771921840996,-150.0,0.00012082,2]
[406534233,1771921841005,-150.0,0.00012083,2]
[406534234,1771921841014,-150.0,0.00012084,2]
[406534235,1771921841023,-150.0,0.00012085,2]
[406534236,1771921841032,-150.0,0.00012086,2]
[406534237,1771921841041,-150.0,0.00012087,2]
[406534238,1771921841050,-150.0,0.00012088,2]
[406534239,1771921841058,-150.0,0.00012089,2]
[406534240,1771921841067,-150.0,0.0001209,2]
[406534241,1771921841076,-150.0,0.00012091,2]
[406534242,1771921841085,-206.290511,0.00012092,2]
[406534243,1771921841094,-500.0,0.00012177,2]
[406534244,1771921841103,-600.0,0.00012272,2]
[406534245,1771921841111,-1530.06,0.00012278,2]
[406534246,1771921841120,-23821.35910021,0.00012424,2]
[406534247,1771921841129,-500.0,0.00012451,2]
[406534248,1771921841138,-275.310191,0.00012493,2]
[406534249,1771921841147,-439.91,0.00012514,2]
[406534250,1771921841156,-509.07639936,0.00012529,2]
[406534251,1771921841165,-1530.06,0.00012552,2]
[406534252,1771921841174,-538.82,0.00012593,2]
[406534253,1771921841183,-1283.2,0.00012616,2]
[406534254,1771921841193,-500.0,0.00012725,2]
[406534255,1771921841202,-3138.35673853,0.00012763,2]
[406534256,1771921841211,-1530.06,0.00012826,2]
[406534257,1771921841221,-433.0,0.00012978,2]
[406534258,1771921841230,-500.0,0.00012999,2]
[406534259,1771921841240,-587.0,0.00013054,2]
[406534260,1771921841249,-170.820962,0.00013073,2]
[406534261,1771921841258,-500.0,0.00013073,2]
[406534262,1771921841267,-500.0,0.00013073,2]
[406534263,1771921841276,-500.0,0.00013073,2]
[406534264,1771921841285,-500.0,0.00013073,2]
[406534265,1771921841294,-501.41062027,0.00013073,2]
[406534266,1771921841303,-500.0,0.00013073,2]
[406534267,1771921841312,-500.0,0.00013073,2]
[406534268,1771921841321,-500.0,0.00013073,2]
[406534269,1771921841330,-500.0,0.00013073,2]
[406534270,1771921841339,-500.0,0.00013073,2]
[406534271,1771921841352,-500.0,0.00013073,2]
[406534272,1771921841362,-500.0,0.00013073,2]
[406534273,1771921841371,-500.0,0.00013073,2]
[406534274,1771921841380,-500.0,0.00013073,2]
[406534275,1771921841390,-404.88604117,0.00013073,2]
[406534276,1771921841399,-500.0,0.00013073,2]
[406534277,1771921841409,-500.0,0.00013073,2]
[406534278,1771921841419,-500.0,0.00013073,2]
[406534279,1771921841428,-500.67985123,0.00013073,2]
[406534280,1771921841437,-500.0,0.00013073,2]
[406534281,1771921841446,-2351.0,0.00013075,2]
[406534282,1771921841455,-1530.06,0.000131,2]
[406534283,1771921841465,-312.0,0.00013101,2]
[406534284,1771921841475,-500.0,0.00013101,2]
[406534285,1771921841484,-250.0,0.00013101,2]
[406534286,1771921841494,-500.0,0.00013101,2]
[406534287,1771921841503,-231.21812179,0.00013101,2]
[406534288,1771921841512,-500.0,0.00013101,2]
[406534289,1771921841521,-500.0,0.00013101,2]
[406534290,1771921841530,-500.0,0.00013101,2]
[406534291,1771921841540,-500.0,0.00013101,2]
[406534292,1771921841549,-500.0,0.00013101,2]
[406534293,1771921841558,-500.0,0.00013101,2]
[406534294,1771921841567,-500.0,0.00013101,2]
[406534295,1771921841576,-500.0,0.00013101,2]
[406534296,1771921841585,-500.0,0.00013101,2]
[406534297,1771921841595,-500.0,0.00013101,2]
[406534298,1771921841604,-500.0,0.00013101,2]
[406534299,1771921841613,-500.0,0.00013101,2]
[406534300,1771921841622,-500.0,0.00013101,2]
[406534301,1771921841632,-500.0,0.00013101,2]
[406534302,1771921841641,-500.0,0.00013101,2]
[406534303,1771921841650,-500.0,0.00013101,2]
[406534304,1771921841660,-500.0,0.00013101,2]
[406534305,1771921841670,-500.0,0.00013101,2]
[406534306,1771921841679,-500.0,0.00013101,2]
[406534307,1771921841688,-335.28578146,0.00013101,2]
[406534308,1771921841699,-500.0,0.00013101,2]
[406534309,1771921841709,-500.0,0.00013101,2]
[406534310,1771921841718,-500.0,0.00013101,2]
[406534311,1771921841727,-500.0,0.00013101,2]
[406534312,1771921841736,-500.0,0.00013101,2]
[406534313,1771921841745,-500.0,0.00013101,2]
[406534314,1771921841754,-500.0,0.00013101,2]
[406534315,1771921841763,-500.0,0.00013101,2]
[406534316,1771921841773,-500.0,0.00013101,2]
[406534317,1771921841782,-500.0,0.00013101,2]
[406534318,1771921841791,-500.0,0.00013101,2]
[406534319,1771921841800,-500.0,0.00013101,2]
[406534320,1771921841810,-500.0,0.00013101,2]
[406534321,1771921841820,-500.0,0.00013101,2]
[406534322,1771921841833,-500.0,0.00013101,2]
[406534323,1771921841843,-500.0,0.00013101,2]
[406534324,1771921841852,-500.0,0.00013101,2]
[406534325,1771921841861,-500.0,0.00013101,2]
[406534326,1771921841872,-500.0,0.00013101,2]
[406534327,1771921841882,-500.0,0.00013101,2]
[406534328,1771921841892,-500.0,0.00013101,2]
[406534329,1771921841902,-500.0,0.00013101,2]
[406534330,1771921841912,-500.0,0.00013101,2]
[406534331,1771921841921,-500.0,0.00013101,2]
[406534332,1771921841931,-500.0,0.00013101,2]
[406534333,1771921841940,-500.0,0.00013101,2]
[406534334,1771921841951,-500.0,0.00013101,2]
[406534335,1771921841962,-500.0,0.00013101,2]
[406534336,1771921841971,-500.0,0.00013101,2]
[406534337,1771921841981,-500.0,0.00013101,2]
[406534338,1771921841990,-500.0,0.00013101,2]
[406534339,1771921841999,-500.0,0.00013101,2]
[406534340,1771921842008,-500.0,0.00013101,2]
[406534341,1771921842018,-500.0,0.00013101,2]
[406534342,1771921842027,-500.0,0.00013101,2]
[406534343,1771921842037,-500.0,0.00013101,2]
[406534344,1771921842046,-500.0,0.00013101,2]
[406534345,1771921842055,-500.0,0.00013101,2]
[406534346,1771921842064,-500.0,0.00013101,2]
[406534347,1771921842075,-500.0,0.00013101,2]
[406534348,1771921842084,-538.82,0.00013166,2]
[406534349,1771921842093,-23821.35910021,0.00013206,2]
[406534350,1771921842103,-199.26988234,0.00013206,2]
[406534351,1771921842112,-500.0,0.00013273,2]
[406534352,1771921842122,-1530.06,0.00013374,2]
[406534353,1771921842132,-500.0,0.00013547,2]
[406534354,1771921842141,-1001.70650637,0.00013621,2]
[406534355,1771921842150,-1000.0,0.00013621,2]
[406534356,1771921842160,-1000.0,0.00013621,2]
[406534357,1771921842170,-1000.0,0.00013621,2]
[406534358,1771921842179,-1000.0,0.00013621,2]
[406534359,1771921842188,-735.93365693,0.00013621,2]
[406534360,1771921842198,-828.54094648,0.00013621,2]
[406534361,1771921842207,-1000.0,0.00013621,2]
[406534362,1771921842216,-500.83875396,0.00013621,2]
[406534363,1771921842226,-1050.01264972,0.00013621,2]
[406534364,1771921842235,-1000.0,0.00013621,2]
[406534365,1771921842245,-161.86772992,0.00013621,2]
[406534366,1771921842254,-1000.0,0.00013621,2]
[406534367,1771921842263,-1000.0,0.00013621,2]
[406534368,1771921842272,-1530.06,0.00013648,2]
[406534369,1771921842281,-174.61919141,0.00013676,2]
[406534370,1771921842291,-151.0,0.00013676,2]
[406534371,1771921842301,-500.0,0.00013676,2]
[406534372,1771921842310,-500.0,0.00013676,2]
[406534373,1771921842320,-250.0,0.00013676,2]
[406534374,1771921842329,-500.0,0.00013676,2]
[406534375,1771921842339,-250.0,0.00013676,2]
[406534376,1771921842348,-250.0,0.00013676,2]
[406534377,1771921842357,-500.0,0.00013676,2]
[406534378,1771921842366,-250.0,0.00013676,2]
[406534379,1771921842376,-500.0,0.00013676,2]
[406534380,1771921842385,-250.0,0.00013676,2]
[406534381,1771921842394,-500.0,0.00013676,2]
[406534383,1771921842404,-257.5744131,0.00013676,2]
[406534384,1771921842414,-743.50770149,0.00013676,2]
[406534385,1771921842424,-500.0,0.00013676,2]
[406534387,1771921842433,-500.0,0.00013676,2]
[406534388,1771921842442,-500.0,0.00013676,2]
[406534391,1771921842452,-500.0,0.00013676,2]
[406534392,1771921842461,-500.0,0.00013676,2]
[406534393,1771921842471,-500.0,0.00013676,2]
[406534394,1771921842481,-151.0,0.00013676,2]
[406534395,1771921842491,-500.0,0.00013676,2]
[406534396,1771921842500,-156.587,0.00013676,2]
[406534398,1771921842510,-500.0,0.00013676,2]
[406534401,1771921842520,-162.380719,0.00013676,2]
[406534403,1771921842529,-500.0,0.00013676,2]
[406534405,1771921842539,-159.89501112,0.00013676,2]
[406534406,1771921842548,-500.0,0.00013676,2]
[406534407,1771921842558,-500.0,0.00013676,2]
[406534408,1771921842567,-500.0,0.00013676,2]
[406534409,1771921842577,-592.26070942,0.00013676,2]
[406534410,1771921842587,-250.0,0.00013676,2]
[406534411,1771921842597,-693.3919763,0.00013676,2]
[406534412,1771921842606,-250.0,0.00013676,2]
[406534413,1771921842616,-250.0,0.00013676,2]
[406534414,1771921842626,-304.87117292,0.00013676,2]
[406534415,1771921842636,-500.0,0.00013676,2]
[406534416,1771921842646,-500.0,0.00013676,2]
[406534417,1771921842655,-500.0,0.00013676,2]
[406534418,1771921842664,-500.0,0.00013676,2]
[406534419,1771921842673,-500.0,0.00013676,2]
[406534420,1771921842683,-500.0,0.00013676,2]
[406534421,1771921842692,-500.0,0.00013676,2]
[406534422,1771921842701,-500.0,0.00013676,2]
[406534423,1771921842711,-500.0,0.00013676,2]
[406534424,1771921842720,-500.0,0.00013676,2]
[406534425,1771921842730,-500.0,0.00013676,2]
[406534426,1771921842740,-500.0,0.00013698,2]
[406534427,1771921842749,-500.0,0.00013698,2]
[406534428,1771921842758,-500.0,0.00013698,2]
[406534429,1771921842767,-500.0,0.00013698,2]
[406534430,1771921842777,-500.0,0.00013698,2]
[406534431,1771921842786,-500.0,0.00013698,2]
[406534432,1771921842955,-500.0,0.00013698,2]